fUST/lending_fUST_20241130
["ID","MTS","AMOUNT","RATE_DAILY","PERIOD"]
[343733583,1732944634422,-1038.248684,0.00025,7]
[343733584,1732944634432,-1038.248684,0.00025,7]
[343733585,1732944634442,-1038.248684,0.00025,7]
[343733586,1732944634451,-1038.248684,0.00025,7]
[343733587,1732944634461,-1038.248684,0.00025,7]
[343733588,1732944634471,-1038.248684,0.00025,7]
[343733589,1732944634481,-151.0,0.00025,7]
[343733590,1732944634490,-151.0,0.00025,7]
[343733591,1732944634501,-151.0,0.00025,7]
[343733592,1732944634511,-151.0,0.00025,7]
[343733593,1732944634521,-152.351731,0.00025,7]
[343733594,1732944634531,-151.0,0.00025,7]
[343733595,1732944634541,-151.0,0.00025,7]
[343733596,1732944634553,-152.337981,0.00025,7]
[343733597,1732944634563,-151.0,0.00025,7]
[343733598,1732944634574,-151.0,0.00025,7]
[343733599,1732944634583,-151.0,0.00025,7]
[343733600,1732944634593,-151.0,0.00025,7]
[343733601,1732944634603,-151.0,0.00025,7]
[343733602,1732944634613,-151.0,0.00025,7]
[343733603,1732944634623,-151.0,0.00025,7]
[343733604,1732944634632,-241.573072,0.00025,7]
[343733605,1732944634642,-376.310224,0.00025,7]
[343733606,1732944634652,-376.310224,0.00025,7]
[343733607,1732944634661,-376.310224,0.00025,7]
[343733608,1732944634670,-376.310224,0.00025,7]
[343733609,1732944634680,-376.310224,0.00025,7]
[343733610,1732944634690,-376.310224,0.00025,7]
[343733611,1732944634699,-376.310224,0.00025,7]
[343733612,1732944634709,-376.310224,0.00025,7]
[343733613,1732944634719,-1089.576646,0.00025,7]
[343733614,1732944634729,-1089.576646,0.00025,7]
[343733615,1732944634739,-1089.576646,0.00025,7]
[343733616,1732944634749,-1089.576646,0.00025,7]
[343733617,1732944634758,-1089.576646,0.00025,7]
[343733618,1732944634768,-1089.576646,0.00025,7]
[343733619,1732944634777,-1089.576646,0.00025,7]
[343733620,1732944634786,-1089.576646,0.00025,7]
[343733621,1732944634798,-1089.576646,0.00025,7]
[343733622,1732944634808,-1089.576646,0.00025,7]
[343733623,1732944634817,-151.0,0.00025,7]
[343733624,1732944634827,-151.0,0.00025,7]
[343733625,1732944634838,-151.0,0.00025,7]
[343733626,1732944634847,-151.0,0.00025,7]
[343733627,1732944634856,-151.0,0.00025,7]
[343733628,1732944634866,-2429.659,0.00025,7]
[343733629,1732944634876,-2429.659,0.00025,7]
[343733630,1732944634885,-2429.659,0.00025,7]
[343733631,1732944634895,-2429.659,0.00025,7]
[343733632,1732944634905,-588.210572,0.00025,7]
[343733633,1732944634915,-588.210572,0.00025,7]
[343733634,1732944634924,-588.210572,0.00025,7]
[343733635,1732944634934,-588.210572,0.00025,7]
[343733636,1732944634943,-2429.659,0.00025,7]
[343733637,1732944634954,-588.210572,0.00025,7]
[343733638,1732944634964,-2429.659,0.00025,7]
[343733639,1732944634973,-2429.659,0.00025,7]
[343733640,1732944634983,-2429.659,0.00025,7]
[343733641,1732944634993,-588.210572,0.00025,7]
[343733642,1732944635003,-588.210572,0.00025,7]
[343733643,1732944635013,-588.210572,0.00025,7]
[343733644,1732944635022,-588.210572,0.00025,7]
[343733645,1732944635032,-588.210572,0.00025,7]
[343733646,1732944635042,-2588.612052,0.00025,7]
[343733647,1732944635052,-2588.612052,0.00025,7]
[343733648,1732944635061,-2588.612052,0.00025,7]
[343733649,1732944635071,-2588.612052,0.00025,7]
[343733650,1732944635079,-2588.612052,0.00025,7]
[343733651,1732944635088,-2588.612052,0.00025,7]
[343733652,1732944635098,-2588.612052,0.00025,7]
[343733653,1732944635107,-2588.612052,0.00025,7]
[343733654,1732944635116,-2588.612052,0.00025,7]
[343733655,1732944635126,-2588.612052,0.00025,7]
[343733656,1732944635135,-991.366467,0.00025,7]
[343733657,1732944635145,-991.366467,0.00025,7]
[343733658,1732944635154,-991.366467,0.00025,7]
[343733659,1732944635163,-991.366467,0.00025,7]
[343733660,1732944635172,-991.366467,0.00025,7]
[343733661,1732944635182,-991.366467,0.00025,7]
[343733662,1732944635191,-991.366467,0.00025,7]
[343733663,1732944635201,-991.366467,0.00025,7]
[343733664,1732944635211,-991.366467,0.00025,7]
[343733665,1732944635220,-991.366467,0.00025,7]
[343733666,1732944635230,-151.0,0.00025,7]
[343733667,1732944635240,-151.0,0.00025,7]
[343733668,1732944635254,-151.0,0.00025,7]
[343733669,1732944635263,-151.0,0.00025,7]
[343733670,1732944635273,-151.0,0.00025,7]
[343733671,1732944635282,-855.067165,0.00025,7]
[343733672,1732944635294,-855.067165,0.00025,7]
[343733673,1732944635303,-855.067165,0.00025,7]
[343733674,1732944635312,-855.067165,0.00025,7]
[343733675,1732944635323,-855.067165,0.00025,7]
[343733676,1732944635333,-855.067165,0.00025,7]
[343733677,1732944635342,-855.067165,0.00025,7]
[343733678,1732944635351,-855.067165,0.00025,7]
[343733679,1732944635361,-855.067165,0.00025,7]
[343733680,1732944635370,-855.067165,0.00025,7]
[343733681,1732944635379,-429.498463,0.00025,7]
[343733682,1732944635388,-429.498463,0.00025,7]
[343733683,1732944635397,-429.498463,0.00025,7]
[343733684,1732944635407,-429.498463,0.00025,7]
[343733685,1732944635416,-429.498463,0.00025,7]
[343733686,1732944635425,-429.498463,0.00025,7]
[343733687,1732944635435,-429.498463,0.00025,7]
[343733688,1732944635444,-429.498463,0.00025,7]
[343733689,1732944635454,-151.0,0.00025,7]
[343733690,1732944635464,-151.0,0.00025,7]
[343733691,1732944635474,-151.0,0.00025,7]
[343733692,1732944635483,-160.881192,0.00025,7]
[343733693,1732944635492,-3343.91384,0.00025,7]
[343733694,1732944635502,-3343.91384,0.00025,7]
[343733695,1732944635511,-3343.91384,0.00025,7]
[343733696,1732944635521,-3343.91384,0.00025,7]
[343733697,1732944635532,-3343.91384,0.00025,7]
[343733698,1732944635542,-3343.91384,0.00025,7]
[343733699,1732944635553,-151.0,0.00025,7]
[343733700,1732944635563,-151.0,0.00025,7]
[343733701,1732944635572,-461.16829322,0.00025,2]
[343733702,1732944635581,-151.0,0.00025,7]
[343733703,1732944635590,-3343.91384,0.00025,7]
[343733704,1732944635599,-151.0,0.00025,7]
[343733705,1732944635609,-3343.91384,0.00025,7]
[343733706,1732944635619,-3343.91384,0.00025,7]
[343733707,1732944635628,-3343.91384,0.00025,7]
[343733708,1732944635638,-3343.91384,0.00025,7]
[343733709,1732944635647,-3343.91384,0.00025,7]
[343733710,1732944635656,-1068.414665,0.00025,7]
[343733711,1732944635665,-1068.414665,0.00025,7]
[343733712,1732944635675,-1068.414665,0.00025,7]
[343733713,1732944635684,-1068.414665,0.00025,7]
[343733714,1732944635694,-1068.414665,0.00025,7]
[343733715,1732944635703,-1154.249915,0.00025,7]
[343733716,1732944635713,-1068.414665,0.00025,7]
[343733717,1732944635722,-1154.249915,0.00025,7]
[343733718,1732944635732,-1154.249915,0.00025,7]
[343733719,1732944635741,-1154.249915,0.00025,7]
[343733720,1732944635751,-1154.249915,0.00025,7]
[343733721,1732944635760,-1154.249915,0.00025,7]
[343733722,1732944635769,-1154.249915,0.00025,7]
[343733723,1732944635779,-1154.249915,0.00025,7]
[343733724,1732944635788,-1154.249915,0.00025,7]
[343733725,1732944635800,-1154.249915,0.00025,7]
[343733726,1732944635810,-1068.414665,0.00025,7]
[343733727,1732944635820,-1068.414665,0.00025,7]
[343733728,1732944635830,-1068.414665,0.00025,7]
[343733729,1732944635840,-1068.414665,0.00025,7]
[343733730,1732944635849,-1068.414665,0.00025,7]
[343733731,1732944635859,-1068.414665,0.00025,7]
[343733732,1732944635868,-302.78807257,0.00025,2]
[343733733,1732944635878,-151.0,0.00025,7]
[343733734,1732944635887,-151.0,0.00025,7]
[343733735,1732944635986,-151.0,0.00025,7]
[343733736,1732944635997,-151.0,0.00025,7]
[343733737,1732944636006,-151.0,0.00025,7]
[343733738,1732944636015,-151.0,0.00025,7]
[343733739,1732944636025,-151.0,0.00025,7]
[343733740,1732944636035,-151.0,0.00025,7]
[343733741,1732944636046,-151.0,0.00025,7]
[343733742,1732944636056,-151.0,0.00025,7]
[343733743,1732944636066,-151.0,0.00025,7]
[343733744,1732944636077,-151.0,0.00025,7]
[343733745,1732944636086,-151.0,0.00025,7]
[343733746,1732944636095,-151.0,0.00025,7]
[343733747,1732944636105,-151.0,0.00025,7]
[343733748,1732944636115,-151.0,0.00025,7]
[343733749,1732944636125,-161.055,0.00025046,9]
[343733750,1732944636134,-500.9458325,0.00025073,2]
[343733751,1732944636144,-500.0,0.00025073,2]
[343733752,1732944636156,-177.94034438,0.00025073,2]
[343733753,1732944636168,-500.0,0.00025073,2]
[343733754,1732944636179,-500.0,0.00025073,2]
[343733755,1732944636188,-170.19789142,0.00025073,2]
[343733756,1732944636198,-500.0,0.00025073,2]
[343733757,1732944636208,-500.0,0.00025073,2]
[343733758,1732944636218,-72606.80035052,0.0002509,2]
[343733759,1732944636227,-251.558977,0.0002509,7]
[343733760,1732944636237,-251.558977,0.0002509,7]
[343733761,1732944636247,-151.0,0.0002509,7]
[343733762,1732944636258,-151.0,0.0002509,7]
[343733763,1732944636267,-151.0,0.0002509,7]
[343733764,1732944636277,-530.712597,0.0002509,7]
[343733765,1732944636286,-530.712597,0.0002509,7]
[343733766,1732944636298,-530.712597,0.0002509,7]
[343733767,1732944636308,-530.712597,0.0002509,7]
[343733768,1732944636317,-151.0,0.0002509,7]
[343733769,1732944636327,-261.961516,0.0002509,7]
[343733770,1732944636336,-151.0,0.0002509,7]
[343733771,1732944636345,-151.3854,0.0002509,7]
[343733772,1732944636355,-151.0,0.0002509,7]
[343733773,1732944636364,-151.0,0.0002509,7]
[343733774,1732944636373,-151.0,0.0002509,7]
[343733775,1732944636382,-151.0,0.0002509,7]
[343733776,1732944636392,-217.368417,0.0002509,7]
[343733777,1732944636401,-629.854898,0.0002509,7]
[343733778,1732944636411,-629.854898,0.0002509,7]
[343733779,1732944636420,-629.854898,0.0002509,7]
[343733780,1732944636430,-629.854898,0.0002509,7]
[343733781,1732944636440,-151.0,0.0002509,7]
[343733782,1732944636450,-151.0,0.0002509,7]
[343733783,1732944636459,-151.0,0.0002509,7]
[343733784,1732944636469,-151.0,0.0002509,7]
[343733785,1732944636478,-151.0,0.0002509,7]
[343733786,1732944636488,-153.805957,0.0002509,7]
[343733787,1732944636497,-151.0,0.0002509,7]
[343733788,1732944636507,-151.0,0.0002509,7]
[343733789,1732944636517,-151.0,0.0002509,7]
[343733790,1732944636526,-151.0,0.0002509,7]
[343733791,1732944636537,-151.0,0.0002509,7]
[343733792,1732944636549,-151.0,0.0002509,7]
[343733793,1732944636559,-151.0,0.0002509,7]
[343733794,1732944636569,-151.0,0.0002509,7]
[343733795,1732944636579,-151.0,0.0002509,7]
[343733796,1732944636588,-275.868464,0.0002509,7]
[343733797,1732944636597,-401.593233,0.0002509,7]
[343733798,1732944636607,-401.593233,0.0002509,7]
[343733799,1732944636617,-401.593233,0.0002509,7]
[343733800,1732944636626,-401.593233,0.0002509,7]
[343733801,1732944636635,-401.593233,0.0002509,7]
[343733802,1732944636644,-401.593233,0.0002509,7]
[343733803,1732944636654,-151.0,0.0002509,7]
[343733804,1732944636664,-151.0,0.0002509,7]
[343733805,1732944636674,-237.666618,0.0002509,7]
[343733806,1732944636683,-165.680887,0.0002509,7]
[343733807,1732944636692,-165.680887,0.0002509,7]
[343733808,1732944636702,-165.680887,0.0002509,7]
[343733809,1732944636712,-165.680887,0.0002509,7]
[343733810,1732944636721,-165.680887,0.0002509,7]
[343733811,1732944636731,-165.680887,0.0002509,7]
[343733812,1732944636740,-151.0,0.0002509,7]
[343733813,1732944636750,-151.0,0.0002509,7]
[343733814,1732944636759,-151.0,0.0002509,7]
[343733815,1732944636769,-151.0,0.0002509,7]
[343733816,1732944636779,-151.0,0.0002509,7]
[343733817,1732944636788,-151.0,0.0002509,7]
[343733818,1732944636800,-159.038621,0.0002509,7]
[343733819,1732944636809,-419.692902,0.0002509,7]
[343733820,1732944636817,-419.692902,0.0002509,7]
[343733821,1732944636827,-419.692902,0.0002509,7]
[343733822,1732944636836,-419.692902,0.0002509,7]
[343733823,1732944636845,-419.692902,0.0002509,7]
[343733824,1732944636855,-419.692902,0.0002509,7]
[343733825,1732944636865,-1870.350938,0.0002509,7]
[343733826,1732944636874,-1870.350938,0.0002509,7]
[343733827,1732944636883,-1870.350938,0.0002509,7]
[343733828,1732944636893,-1870.350938,0.0002509,7]
[343733829,1732944636904,-1870.350938,0.0002509,7]
[343733830,1732944636914,-1870.350938,0.0002509,7]
[343733831,1732944636923,-866.083223,0.0002509,7]
[343733832,1732944636933,-866.083223,0.0002509,7]
[343733833,1732944636942,-866.083223,0.0002509,7]
[343733834,1732944636951,-866.083223,0.0002509,7]
[343733835,1732944636960,-866.083223,0.0002509,7]
[343733836,1732944636969,-866.083223,0.0002509,7]
[343733837,1732944636979,-237.148762,0.0002509,7]
[343733838,1732944636989,-273.914173,0.0002509,7]
[343733839,1732944636999,-273.914173,0.0002509,7]
[343733840,1732944637010,-273.914173,0.0002509,7]
[343733841,1732944637019,-273.914173,0.0002509,7]
[343733842,1732944637029,-273.914173,0.0002509,7]
[343733843,1732944637039,-273.914173,0.0002509,7]
[343733844,1732944637050,-273.914173,0.0002509,7]
[343733845,1732944637059,-273.914173,0.0002509,7]
[343733846,1732944637068,-1038.248684,0.0002509,7]
[343733847,1732944637077,-1038.248684,0.0002509,7]
[343733848,1732944637087,-1038.248684,0.0002509,7]
[343733849,1732944637097,-1038.248684,0.0002509,7]
[343733850,1732944637106,-1038.248684,0.0002509,7]
[343733851,1732944637115,-1038.248684,0.0002509,7]
[343733852,1732944637124,-1038.248684,0.0002509,7]
[343733853,1732944637133,-1038.248684,0.0002509,7]
[343733854,1732944637143,-151.0,0.0002509,7]
[343733855,1732944637152,-167.160709,0.0002509,7]
[343733856,1732944637161,-376.310224,0.0002509,7]
[343733857,1732944637171,-376.310224,0.0002509,7]
[343733858,1732944637180,-376.310224,0.0002509,7]
[343733859,1732944637190,-376.310224,0.0002509,7]
[343733860,1732944637199,-376.310224,0.0002509,7]
[343733861,1732944637208,-376.310224,0.0002509,7]
[343733862,1732944637219,-376.310224,0.0002509,7]
[343733863,1732944637228,-376.310224,0.0002509,7]
[343733864,1732944637238,-1089.576646,0.0002509,7]
[343733865,1732944637249,-1089.576646,0.0002509,7]
[343733866,1732944637260,-1089.576646,0.0002509,7]
[343733867,1732944637269,-1089.576646,0.0002509,7]
[343733868,1732944637279,-1089.576646,0.0002509,7]
[343733869,1732944637288,-1089.576646,0.0002509,7]
[343733870,1732944637299,-1089.576646,0.0002509,7]
[343733871,1732944637308,-1089.576646,0.0002509,7]
[343733872,1732944637318,-1089.576646,0.0002509,7]
[343733873,1732944637328,-1089.576649,0.0002509,7]
[343733874,1732944637339,-234.538855,0.0002509,7]
[343733875,1732944637348,-2429.659,0.0002509,7]
[343733876,1732944637358,-2429.659,0.0002509,7]
[343733877,1732944637368,-2429.659,0.0002509,7]
[343733878,1732944637378,-2429.659,0.0002509,7]
[343733879,1732944637389,-588.210572,0.0002509,7]
[343733880,1732944637398,-588.210572,0.0002509,7]
[343733881,1732944637408,-2429.659,0.0002509,7]
[343733882,1732944637418,-588.210572,0.0002509,7]
[343733883,1732944637427,-2429.659,0.0002509,7]
[343733884,1732944637437,-588.210572,0.0002509,7]
[343733885,1732944637446,-588.210572,0.0002509,7]
[343733886,1732944637456,-2429.659,0.0002509,7]
[343733887,1732944637466,-2429.659,0.0002509,7]
[343733888,1732944637475,-588.210572,0.0002509,7]
[343733889,1732944637484,-588.210572,0.0002509,7]
[343733890,1732944637493,-588.210572,0.0002509,7]
[343733891,1732944637502,-588.210572,0.0002509,7]
[343733892,1732944637512,-588.21058,0.0002509,7]
[343733893,1732944637521,-2588.612052,0.0002509,7]
[343733894,1732944637531,-2588.612052,0.0002509,7]
[343733895,1732944637541,-2588.612052,0.0002509,7]
[343733896,1732944637552,-2588.612052,0.0002509,7]
[343733897,1732944637561,-2588.612052,0.0002509,7]
[343733898,1732944637571,-2588.612052,0.0002509,7]
[343733899,1732944637581,-2588.612052,0.0002509,7]
[343733900,1732944637590,-2588.612052,0.0002509,7]
[343733901,1732944637600,-2588.612052,0.0002509,7]
[343733902,1732944637609,-2588.612053,0.0002509,7]
[343733903,1732944637619,-991.366467,0.0002509,7]
[343733904,1732944637628,-991.366467,0.0002509,7]
[343733905,1732944637638,-991.366467,0.0002509,7]
[343733906,1732944637647,-991.366467,0.0002509,7]
[343733907,1732944637657,-991.366467,0.0002509,7]
[343733908,1732944637667,-991.366467,0.0002509,7]
[343733909,1732944637676,-991.366467,0.0002509,7]
[343733910,1732944637685,-991.366467,0.0002509,7]
[343733911,1732944637695,-991.366467,0.0002509,7]
[343733912,1732944637704,-991.366469,0.0002509,7]
[343733913,1732944637715,-151.0,0.0002509,7]
[343733914,1732944637725,-151.0,0.0002509,7]
[343733915,1732944637734,-218.256916,0.0002509,7]
[343733916,1732944637744,-855.067165,0.0002509,7]
[343733917,1732944637753,-855.067165,0.0002509,7]
[343733918,1732944637763,-855.067165,0.0002509,7]
[343733919,1732944637772,-855.067165,0.0002509,7]
[343733920,1732944637782,-855.067165,0.0002509,7]
[343733921,1732944637791,-855.067165,0.0002509,7]
[343733922,1732944637806,-855.067165,0.0002509,7]
[343733923,1732944637815,-855.067165,0.0002509,7]
[343733924,1732944637825,-855.067165,0.0002509,7]
[343733925,1732944637834,-855.067163,0.0002509,7]
[343733926,1732944637843,-429.498463,0.0002509,7]
[343733927,1732944637853,-429.498463,0.0002509,7]
[343733928,1732944637863,-429.498463,0.0002509,7]
[343733930,1732944637873,-429.498463,0.0002509,7]
[343733932,1732944637965,-429.498463,0.0002509,7]
[343733933,1732944637975,-429.498463,0.0002509,7]
[343733934,1732944637985,-429.498463,0.0002509,7]
[343733935,1732944637994,-429.498463,0.0002509,7]
[343733936,1732944638004,-429.498463,0.0002509,7]
[343733937,1732944638013,-429.498463,0.0002509,7]
[343733938,1732944638022,-3343.91384,0.0002509,7]
[343733939,1732944638031,-3343.91384,0.0002509,7]
[343733940,1732944638041,-3343.91384,0.0002509,7]
[343733941,1732944638053,-3343.91384,0.0002509,7]
[343733943,1732944638062,-151.0,0.0002509,7]
[343733944,1732944638072,-151.0,0.0002509,7]
[343733945,1732944638082,-262.736119,0.0002509,7]
[343733946,1732944638091,-3343.91384,0.0002509,7]
[343733947,1732944638101,-3343.91384,0.0002509,7]
[343733948,1732944638110,-3343.91384,0.0002509,7]
[343733949,1732944638120,-3343.913832,0.0002509,7]
[343733950,1732944638129,-1154.249915,0.0002509,7]
[343733951,1732944638139,-1154.249915,0.0002509,7]
[343733952,1732944638150,-1154.249915,0.0002509,7]
[343733953,1732944638160,-1154.249915,0.0002509,7]
[343733954,1732944638171,-1154.249915,0.0002509,7]
[343733955,1732944638180,-1068.414665,0.0002509,7]
[343733956,1732944638190,-1068.414665,0.0002509,7]
[343733957,1732944638200,-1068.414665,0.0002509,7]
[343733958,1732944638209,-1068.414665,0.0002509,7]
[343733959,1732944638219,-1154.249915,0.0002509,7]
[343733960,1732944638228,-1154.249915,0.0002509,7]
[343733961,1732944638238,-1154.249915,0.0002509,7]
[343733962,1732944638250,-1154.249915,0.0002509,7]
[343733963,1732944638259,-1154.249917,0.0002509,7]
[343733964,1732944638268,-1068.414665,0.0002509,7]
[343733965,1732944638277,-1068.414665,0.0002509,7]
[343733966,1732944638286,-1068.414665,0.0002509,7]
[343733967,1732944638297,-1068.414663,0.0002509,7]
[343733968,1732944638306,-151.0,0.0002509,7]
[343733969,1732944638314,-151.0,0.0002509,7]
[343733970,1732944638325,-243.53585,0.0002509,7]
[343733971,1732944638335,-629.854898,0.00025111,7]
[343733972,1732944638344,-629.854898,0.00025111,7]
[343733973,1732944638353,-151.0,0.00025111,7]
[343733974,1732944638362,-151.0,0.00025111,7]
[343733975,1732944638372,-401.593233,0.00025111,7]
[343733976,1732944638381,-401.593233,0.00025111,7]
[343733977,1732944638390,-165.680887,0.00025111,7]
[343733978,1732944638399,-165.680887,0.00025111,7]
[343733979,1732944638412,-151.0,0.00025111,7]
[343733980,1732944638422,-419.692902,0.00025111,7]
[343733981,1732944638431,-419.692902,0.00025111,7]
[343733982,1732944638441,-1870.350938,0.00025111,7]
[343733983,1732944638450,-1870.350938,0.00025111,7]
[343733984,1732944638459,-164.53157836,0.00025111,7]
[343733985,1732944638515,-701.55164464,0.00025111,7]
[343733986,1732944638525,-866.083223,0.00025111,7]
[343733987,1732944638536,-273.914173,0.00025111,7]
[343733988,1732944638547,-273.914173,0.00025111,7]
[343733989,1732944638557,-1038.248684,0.00025111,7]
[343733990,1732944638567,-437.41731076,0.00025111,7]
[343733992,1732944638805,-435.4864226,0.000249,2]
[343733993,1732944638815,-150.01,0.00024999,2]
[343733994,1732944638825,-140.92295886,0.00024999,2]
[343734011,1732944643464,-453.22959897,0.00024999,2]
[343734028,1732944646473,-1169.27083333,0.00025,7]
[343734029,1732944646483,-655.9791667,0.00025,7]
[343734037,1732944712104,192.027767,0.00013973,2]
[343734041,1732945437531,165.677885,0.00013973,2]
[343734045,1732945757167,-884.38002924,0.0002,2]
[343734187,1732945838935,-284.89080409,0.0002,2]
[343734188,1732945838945,-2000.0,0.00022438,2]
[343734189,1732945838955,-1169.27083333,0.00022438,2]
[343734190,1732945838964,-165.677885,0.00022759,2]
[343734191,1732945838973,-170.915798,0.00023723,2]
[343734193,1732945838983,-320.112531,0.00023816,2]
[343734195,1732945838992,-213.4185244,0.00023822,2]
[343734196,1732945839002,-586.55043407,0.00023967,2]
[343734197,1732945839011,-320.112531,0.00024697,2]
[343734198,1732945839021,-268.02957967,0.00024999,2]
[343734234,1732945843701,-31.97042033,0.00024999,2]
[343734235,1732945843712,-300.0,0.00024999,2]
[343734236,1732945843722,-513.29166663,0.00025,7]
[343734237,1732945843731,-151.0,0.00025,7]
[343734239,1732945843740,-136.53791304,0.00025,7]
[343734240,1732945843777,-14.46208696,0.00025,7]
[343734241,1732945843786,-318.427558,0.00025,7]
[343734242,1732945843796,-223.60595183,0.00025,7]
[343734247,1732946057459,165.677885,0.00013973,2]
[343734255,1732946984809,308.0,0.000255,30]
[343734300,1732947034640,-1169.27083333,0.0002,2]
[343734301,1732947034651,-500.0,0.0002,2]
[343734302,1732947034661,-500.0,0.0002,2]
[343734303,1732947034671,-237.23528357,0.0002,2]
[343734304,1732947034681,-165.677885,0.00024224,2]
[343734305,1732947034691,-300.0,0.00024307,2]
[343734306,1732947034701,-300.0,0.00024307,2]
[343734307,1732947034710,-196.8429818,0.00024318,2]
[343734308,1732947034720,-168.478079,0.00024469,2]
[343734309,1732947034729,-150.0,0.000246,2]
[343734310,1732947034738,-192.067518,0.00024784,2]
[343734311,1732947034748,-300.0,0.00025,2]
[343734312,1732947034758,-252.0,0.00025,2]
[343734313,1732947034767,-157.70378588,0.00025,2]
[343734314,1732947034777,-3442.60227482,0.00025089,2]
[343734315,1732947034787,-171.86981842,0.00025089,2]
[343734316,1732947034797,-2858.09295844,0.00025089,2]
[343734350,1732947042941,-2711.94371411,0.00025089,2]
[343734351,1732947042955,-164.94838712,0.00025089,2]
[343734352,1732947042966,-261.43,0.000251,2]
[343734353,1732947042978,-350.90530987,0.00025111,7]
[343734354,1732947042988,-499.62964559,0.00025111,2]
[343734355,1732947043003,-778.59671932,0.00025111,2]
[343734356,1732947043014,-323.8275217,0.00025165,2]
[343734357,1732947043026,-2178.0,0.0002519,2]
[343734358,1732947043037,-300.0,0.000254,2]
[343734359,1732947043048,-192.067518,0.00025701,2]
[343734360,1732947043058,-529.93172642,0.00026,2]
[343734361,1732947043080,-700.47163292,0.00026,2]
[343734362,1732947043090,-151.0,0.00026022,4]
[343734363,1732947043101,-169.784,0.00026023,12]
[343734364,1732947043111,-420.0,0.00026351,2]
[343734365,1732947043121,-660.0,0.00026384,2]
[343734366,1732947043132,-300.0,0.000264,2]
[343734368,1732947043142,-500.0,0.00026566,7]
[343734369,1732947043151,-192.067518,0.00026618,2]
[343734370,1732947043162,-290.7220589,0.00026685,2]
[343734371,1732947043171,-420.0,0.00026738,2]
[343734374,1732947043302,-1553.7508,0.00026894,30]
[343734375,1732947043328,-6013.24017178,0.00027,10]
[343734376,1732947043338,-1768.78285465,0.00027281,2]
[343734377,1732947043348,-1051.024282,0.00027381,2]
[343734378,1732947043358,-170.24102,0.00027381,2]
[343734379,1732947043368,-172.35323,0.00027381,2]
[343734380,1732947043378,-166.881235,0.00027381,2]
[343734381,1732947043388,-500.0,0.00027397,2]
[343734382,1732947043397,-300.0,0.000274,2]
[343734383,1732947043407,-285.68075534,0.00027499,2]
[343734384,1732947043417,-255.07705428,0.00027499,2]
[343734385,1732947043427,-167.21551109,0.00027499,2]
[343734386,1732947043437,-500.0,0.00027499,2]
[343734387,1732947043447,-3356.1418398,0.000275,30]
[343734388,1732947043456,-3000.0,0.000275,2]
[343734389,1732947043465,-275.85,0.000275,3]
[343734390,1732947043475,-827.6,0.000275,3]
[343734391,1732947043485,-621.28,0.000275,10]
[343734392,1732947043495,-599.05,0.000275,10]
[343734393,1732947043504,-208.15149521,0.000275,2]
[343734394,1732947043514,-499.21,0.000275,10]
[343734395,1732947043524,-224.6976727,0.00027509,2]
[343734396,1732947043534,-3000.0,0.0002751,2]
[343734397,1732947043543,-191018.9776717,0.0002751,2]
[343734398,1732947043553,-3000.0,0.0002752,2]
[343734399,1732947043567,-3000.0,0.0002753,2]
[343734400,1732947043577,-192.067518,0.00027535,2]
[343734401,1732947043587,-3000.0,0.0002754,2]